[Event "13th Senioren-Cup Tegernsee 2025"]
[Site "Rottach-Egern"]
[Date "2025.03.31"]
[Round "3.9"]
[White "Kutschenko, Roland"]
[Black "Pollmann, Sascha"]
[Result "1/2-1/2"]
[Annotator "NA RC"]
[ECO "A80"]
[WhiteElo "1994"]
[BlackElo "2071"]
[PlyCount "91"]
[EventDate "2025.03.25"]
[EventType "swiss"]
[EventCountry "GER"]
[SourceTitle "playchess.com"]
[Source "ChessBase"]
[SourceQuality "1"]
[TimeControl "9000+30"]

1. d4 {[%emt 0:20:07]} f5 {[%emt 0:20:12]} 2. Bg5 {[%emt 0:00:17]} g6 {[%emt 0:00:57]} 3. Nf3 {[%emt 0:01:20]} Bg7 {[%emt 0:00:29]} 4. h4 {[%emt 0:01:33]} d6 {[%emt 0:02:40]} 5. Nc3 {[%emt 0:07:38]} h6 {[%emt 0:00:38]} 6. Bf4 {[%emt 0:00:57]} Nf6 {[%emt 0:00:55]} 7. e3 {[%emt 0:02:39]} Nc6 {[%emt 0:03:07]} 8. d5 {[%emt 0:09:06]} e5 {[%emt 0:01:05]} 9. dxc6 {[%emt 0:00:35]} exf4 {[%emt 0:00:21]} 10. cxb7 {[%emt 0:06:15]} Bxb7 {[%emt 0:00:13]} 11. exf4 {[%emt 0:03:22]} Qe7+ {[%emt 0:01:49]} 12. Qe2 {[%emt 0:02:33]} Bxf3 {[%emt 0:00:49]} 13. Qxe7+ {[%emt 0:02:56]} Kxe7 {[%emt 0:00:08]} 14. gxf3 {[%emt 0:00:13]} Rab8 {[%emt 0:05:49]} 15. O-O-O {[%emt 0:05:02]} Rb4 {[%emt 0:07:16]} 16. b3 {[%emt 0:09:42]} Rxf4 {[%emt 0:05:16]} 17. Be2 {[%emt 0:03:41]} Kd7 {[%emt 0:06:13]} 18. Rhg1 {[%emt 0:03:36]} Rxh4 {[%emt 0:23:47]} 19. Rxg6 {[%emt 0:00:36]} Ne8 {[%emt 0:03:39]} 20. Nd5 {[%emt 0:11:47]} Rh2 {[%emt 0:02:44]} 21. Bd3 {[%emt 0:05:25]} Rf8 {[%emt 0:05:12]} 22. Ne3 {[%emt 0:08:01]} Rxf2 {[%emt 0:03:15]} 23. Bxf5+ {[%emt 0:03:40]} Kd8 {[%emt 0:00:40]} 24. Be4 {[%emt 0:01:12]} Bf6 {[%emt 0:01:52]} 25. Kb1 {[%emt 0:06:46]} Re2 {[%emt 0:07:12]} 26. Nd5 {[%emt 0:02:42]} Bg5 {[%emt 0:01:40]} 27. a4 {[%emt 0:06:09]} Nf6 {[%emt 0:04:08]} 28. Nxf6 {[%emt 0:03:54]} Rxf6 {[%emt 0:00:12]} 29. Rg7 {[%emt 0:00:34]} Re6 {[%emt 0:09:39]} 30. b4 {[%emt 0:04:50]} Re7 {[%emt 0:04:57]} 31. Rg8+ {[%emt 0:01:22]} Re8 {[%emt 0:00:17]} 32. Rg6 {[%emt 0:00:54]} Bd2 {[%emt 0:01:13]} 33. b5 {[%emt 0:03:07]} h5 {[%emt 0:12:42]} 34. Rh1 {[%emt 0:02:45]} Re1+ {[%emt 0:03:53]} 35. Rxe1 {[%emt 0:02:13]} Bxe1 {[%emt 0:00:02]} 36. Rh6 {[%emt 0:00:52]} h4 {[%emt 0:00:17]} 37. Bf5 {[%emt 0:04:07]} Rf8 {[%emt 0:01:12]} 38. Bg4 {[%emt 0:00:33]} Rf7 {[%emt 0:01:52]} 39. Kb2 {[%emt 0:02:44]} Bg3 {[%emt 0:02:31]} 40. Kb3 {[%emt 0:01:54]} Ke7 {[%emt 0:00:49]} 41. Kc4 {[%emt 0:01:57]} Rf4+ {[%emt 0:02:16]} 42. Kb3 {[%emt 0:00:46]} Rf6 {[%emt 0:04:21]} 43. Rh7+ {[%emt 0:00:19]} Rf7 {[%emt 0:00:12]} 44. Rh6 {[%emt 0:00:34]} Rf6 {[%emt 0:00:17]} 45. Rh7+ {[%emt 0:00:07]} Rf7 {[%emt 0:00:12]} 46. Rh6 {[%emt 0:00:08]} 1/2-1/2

[Event "13th Senioren-Cup Tegernsee 2025"]
[Site "Rottach-Egern"]
[Date "2025.03.31"]
[Round "3.10"]
[White "Hafner, Robert"]
[Black "Heinbuch, Detlef Ulrich"]
[Result "1/2-1/2"]
[Annotator "RC"]
[ECO "A46"]
[WhiteElo "2011"]
[BlackElo "2263"]
[PlyCount "79"]
[EventDate "2025.03.25"]
[EventType "swiss"]
[EventCountry "GER"]
[SourceTitle "playchess.com"]
[Source "ChessBase"]
[SourceQuality "1"]
[TimeControl "9000+30"]

1. d4 {[%emt 0:20:05]} Nf6 {[%emt 0:20:12]} 2. Nf3 {[%emt 0:00:05]} c5 {[%emt 0:00:29]} 3. e3 {[%emt 0:00:08]} e6 {[%emt 0:00:55]} 4. Be2 {[%emt 0:00:06]} cxd4 {[%emt 0:04:22]} 5. exd4 {[%emt 0:03:29]} Be7 {[%emt 0:02:22]} 6. c3 {[%emt 0:00:49]} O-O {[%emt 0:02:46]} 7. O-O {[%emt 0:00:04]} Qc7 {[%emt 0:03:41]} 8. Bg5 {[%emt 0:05:40]} b6 {[%emt 0:01:33]} 9. Nbd2 {[%emt 0:00:25]} Bb7 {[%emt 0:00:55]} 10. Re1 {[%emt 0:03:14]} Re8 {[%emt 0:06:31]} 11. Bd3 {[%emt 0:06:18]} d6 {[%emt 0:04:54]} 12. Qe2 {[%emt 0:21:29]} Nbd7 {[%emt 0:05:11]} 13. Ne4 {[%emt 0:10:47]} Nxe4 {[%emt 0:19:04]} 14. Bxe4 {[%emt 0:00:11]} Bxe4 {[%emt 0:00:22]} 15. Qxe4 {[%emt 0:00:07]} d5 {[%emt 0:00:57]} 16. Qe2 {[%emt 0:06:00]} Bd6 {[%emt 0:00:51]} 17. Rad1 {[%emt 0:09:46]} Nf8 {[%emt 0:09:53]} 18. Bc1 {[%emt 0:04:08]} Rab8 {[%emt 0:02:45]} 19. g3 {[%emt 0:11:21]} b5 {[%emt 0:02:14]} 20. a3 {[%emt 0:00:05]} a5 {[%emt 0:02:20]} 21. Ne5 {[%emt 0:00:11]} Bxe5 {[%emt 0:20:18]} 22. dxe5 {[%emt 0:08:04]} Qc4 {[%emt 0:02:07]} 23. Be3 {[%emt 0:01:25]} Qxe2 {[%emt 0:09:06]} 24. Rxe2 {[%emt 0:00:04]} Nd7 {[%emt 0:00:08]} 25. f4 {[%emt 0:04:08]} Rec8 {[%emt 0:03:11]} 26. Kf2 {[%emt 0:00:21]} Rc4 {[%emt 0:00:39]} 27. Bd4 {[%emt 0:09:34]} h5 {[%emt 0:05:41]} 28. Ke3 {[%emt 0:00:50]} Kf8 {[%emt 0:00:21]} 29. Rf1 {[%emt 0:05:00]} g6 {[%emt 0:01:11]} 30. h3 {[%emt 0:01:12]} Ke7 {[%emt 0:00:09]} 31. Ref2 {[%emt 0:00:49]} Rg8 {[%emt 0:03:39]} 32. Rf3 {[%emt 0:03:04]} f5 {[%emt 0:05:31]} 33. exf6+ {[%emt 0:28:01]} Nxf6 {[%emt 0:22:42]} 34. Bxf6+ {[%emt 0:00:00]} Kxf6 {[%emt 0:00:00]} 35. Kd3 {[%emt 0:00:00]} Re4 {[%emt 0:00:00]} 36. Re3 {[%emt 0:00:00]} Rxe3+ {[%emt 0:00:00]} 37. Kxe3 {[%emt 0:00:00]} Rc8 {[%emt 0:00:00]} 38. Kd3 {[%emt 0:00:00]} Rc4 {[%emt 0:00:00]} 39. Re1 {[%emt 0:00:00]} a4 {[%emt 0:00:00]} 40. h4 {[%emt 0:00:00]} 1/2-1/2